bitfinex/quotes_SOLUSD_20240615
["timestamp","ask_amount","ask_price","bid_price","bid_amount"]
[1718410912648,14.042,143.97,143.95,2.5703]
[1718410912854,2.5701,143.96,143.94,7.7112]
[1718410913356,10.8557915,144.0,143.99,2.5696]
[1718410913655,10.2784,143.99,143.96,10.2801]
[1718410913874,7.7089,143.99,143.97,2.5699]
[1718410914037,33.9812915,144.0,143.97,12.8498]
[1718410914237,18.5643915,144.0,143.98,2.5697]
[1718410914440,2.5696,143.99,143.97,25.6995]
[1718410914774,10.8557915,144.0,143.98,7.7092]
[1718410914944,10.8557915,144.0,143.99,7.7088]
[1718410915145,13.4251915,144.0,143.98,2.5697]
[1718410915546,18.5639915,144.0,143.98,2.5697]
[1718410915978,2.5696,143.99,143.97,7.7095]
[1718410916148,13.4252915,144.0,143.98,2.5697]
[1718410916346,5.1394,143.99,143.93,16.6304]
[1718410916575,5.1392,143.99,143.95,7.7109]
[1718410916873,2.5698,143.98,143.96,2.57]
[1718410917239,23.1271,143.99,143.96,7.7102]
[1718410917240,25.6968,143.99,143.96,7.7102]
[1718410917469,33.9810915,144.0,143.97,2.5699]
[1718410917677,17.9882,143.99,143.95,15.4215]
[1718410917866,15.4191,143.98,143.95,7.7106]
[1718410918037,23.1285,143.98,143.95,7.7106]
[1718410918242,2.57,143.97,143.95,2.5701]
[1718410918784,2.57,143.97,143.95,7.7107]
[1718410918948,7.7095,143.98,143.9,15.8015]
[1718410919143,15.419,143.98,143.95,12.8514]
[1718410919479,12.8491,143.98,143.95,15.4216]
[1718410919785,7.7095,143.98,143.96,2.5701]
[1718410919947,7.7095,143.98,143.95,25.7028]
[1718410920288,15.4189,143.98,143.95,15.4215]
[1718410920475,2.5699,143.97,143.95,2.5701]
[1718410920686,17.9888,143.98,143.92,15.4243]
[1718410920687,10.2812,143.96,143.92,15.4243]
[1718410920845,15.4222,143.95,143.92,23.1369]
[1718410921047,15.4222,143.95,143.92,15.4248]
[1718410921382,100.0,143.96,143.9,7.7133]
[1718410921671,2.5708,143.93,143.91,2.5709]
[1718410921971,25.7062,143.94,143.91,7.7129]
[1718410922286,7.7118,143.94,143.91,15.4259]
[1718410922450,7.7118,143.94,143.92,2.5708]
[1718410922641,2.5707,143.93,143.91,7.7129]
[1718410922842,7.7121,143.93,143.9,25.7109]
[1718410923071,2.5707,143.93,143.91,2.5709]
[1718410923446,17.9939,143.94,143.91,7.7129]
[1718410923655,23.1348,143.94,143.91,7.7129]
[1718410923874,2.5707,143.93,143.91,7.7129]
[1718410924083,2.5707,143.93,143.91,2.5709]
[1718410924781,2.5709,143.92,143.9,2.5711]
[1718410924956,7.7127,143.92,143.89,23.1418]
[1718410925158,2.5709,143.92,143.9,2.5711]
[1718410925495,2.5709,143.92,143.9,7.7135]
[1718410925786,7.7124,143.93,143.91,2.571]
[1718410925966,2.5708,143.93,143.91,2.571]
[1718410926166,23.1317,143.96,143.93,2.5706]
[1718410926365,23.1317,143.96,143.86,36.6815]
[1718410926366,20.5633,143.95,143.92,7.7124]
[1718410926557,2.5705,143.94,143.92,2.5708]
[1718410926892,0.51,143.97,143.9,5.1422]
[1718410927194,0.51,143.97,143.9,7.7133]
[1718410927195,7.7123,143.93,143.9,7.7133]
[1718410927376,7.7125,143.92,143.9,2.5711]
[1718410927691,7.7125,143.92,143.89,23.1416]
[1718410927886,7.7143,143.89,143.86,23.1463]
[1718410928186,2.5715,143.89,143.87,2.5717]
[1718410928352,7.7143,143.89,143.87,2.5717]
[1718410928554,7.7143,143.89,143.86,23.1464]
[1718410928757,2.5715,143.89,143.87,2.5717]
[1718410929185,5.1428,143.89,143.86,18.0028]
[1718410929362,5.1428,143.89,143.87,2.5717]
[1718410929563,2.5714,143.89,143.87,2.5717]
[1718410929764,2.5713,143.9,143.87,23.1453]
[1718410930064,2.5713,143.9,143.88,2.5715]
[1718410930259,7.7138,143.9,143.87,25.7169]
[1718410930679,15.4275,143.9,143.87,7.7149]
[1718410931178,2.5714,143.89,143.87,7.7149]
[1718410931385,7.7138,143.9,143.88,2.5715]
[1718410931607,5.1429,143.89,143.83,15.8015]
[1718410931769,2.5714,143.89,143.87,2.5717]
[1718410932681,2.5713,143.9,143.88,2.5715]
[1718410932901,2.5717,143.88,143.85,5.144]
[1718410933104,2.5718,143.87,143.84,5.1446]
[1718410933401,2.5717,143.88,143.86,2.5719]
[1718410933564,15.4296,143.88,143.85,2.572]
[1718410933769,12.8579,143.88,143.85,2.572]
[1718410933983,2.5718,143.87,143.85,2.572]
[1718410934179,25.7159,143.88,143.85,2.572]
[1718410934386,7.7149,143.88,143.85,7.7162]
[1718410934590,2.5714,143.89,143.86,5.1438]
[1718410934797,7.7118,143.94,143.91,2.5709]
[1718410934994,7.7118,143.94,143.87,15.4689]
[1718410934995,5.1412,143.94,143.9,10.2849]
[1718410935186,5.1414,143.93,143.9,2.5711]
[1718410935505,7.7132,143.91,143.88,7.7144]
[1718410936272,100.0,143.93,143.86,18.0033]
[1718410936477,10.2847,143.91,143.87,7.7152]
[1718410936678,7.7135,143.91,143.88,7.7146]
[1718410936993,25.7096,143.92,143.89,5.1428]
[1718410937202,7.7112,143.95,143.92,7.7123]
[1718410937399,2.5705,143.94,143.92,2.5707]
[1718410937578,7.7115,143.94,143.91,7.7128]
[1718410937899,2.5705,143.94,143.91,15.4259]
[1718410938402,7.7115,143.94,143.91,7.7128]
[1718410938604,2.5707,143.93,143.91,7.7128]
[1718410938778,2.5707,143.93,143.91,2.5709]
[1718410939887,2.5709,143.92,143.9,2.5711]
[1718410940484,25.7071,143.93,143.9,7.7135]
[1718410940682,23.1379,143.92,143.88,7.7146]
[1718410940895,7.7132,143.91,143.88,7.7145]
[1718410941102,15.4263,143.91,143.88,7.7145]
[1718410941499,7.7132,143.91,143.88,7.7145]
[1718410941891,2.5713,143.9,143.87,25.7162]
[1718410942088,25.711,143.91,143.88,2.5715]
[1718410942295,23.1397,143.91,143.87,25.7163]
[1718410942508,2.5714,143.89,143.87,2.5716]
[1718410942843,7.7142,143.89,143.86,7.7155]
[1718410943004,18.0018,143.88,143.85,2.572]
[1718410943312,2.5717,143.87,143.85,2.572]
[1718410943516,100.17,143.9,143.81,21.9545]
[1718410943683,2.572,143.86,143.84,2.5722]
[1718410944089,2.5719,143.86,143.84,2.5722]
[1718410944295,7.7159,143.86,143.83,7.7171]
[1718410944607,18.0028,143.87,143.84,23.1502]
[1718410944608,2.5718,143.87,143.84,23.1502]
[1718410944815,7.7153,143.87,143.84,18.0056]
[1718410945121,2.5719,143.86,143.84,2.5721]
[1718410947315,33.4583,143.9,143.81,15.4689]
[1718410947491,2.5716,143.88,143.86,2.5718]
[1718410947906,7.7144,143.89,143.86,7.7156]
[1718410948385,15.4286,143.89,143.86,7.7156]
[1718410948587,2.5715,143.89,143.87,2.5717]
[1718410948807,2.5715,143.89,143.86,25.7187]
[1718410948987,2.5715,143.89,143.87,2.5717]
[1718410949396,23.93188109,143.93,143.87,2.5716]
[1718410949612,2.5712,143.9,143.88,2.5715]
[1718410950339,117.03,143.93,143.9,7.7134]
[1718410950340,7.7124,143.93,143.9,7.7134]
[1718410950514,2.5711,143.91,143.88,23.1441]
[1718410950693,2.5711,143.91,143.89,2.5713]
[1718410950887,7.7132,143.91,143.88,7.7145]
[1718410951513,2.5714,143.89,143.86,15.4313]
[1718410951718,6.6606,143.95,143.83,6.2629]
[1718410951719,100.0,143.92,143.85,2.572]
[1718410951905,7.715,143.88,143.85,7.7162]
[1718410952096,25.7151,143.89,143.86,7.7157]
[1718410952296,7.7145,143.89,143.86,7.7157]
[1718410952518,2.5715,143.88,143.86,2.5719]
[1718410952807,2.5715,143.88,143.85,23.1486]
[1718410952808,2.5719,143.86,143.84,2.5722]
[1718410953690,2.5719,143.86,143.83,23.1514]
[1718410953691,2.5721,143.85,143.83,2.5723]
[1718410954022,12.8597,143.86,143.83,7.7171]
[1718410954311,2.5721,143.85,143.83,2.5723]
[1718410954889,2.5725,143.83,143.75,16.0877]
[1718410955091,5.3148,143.84,143.81,2.5727]
[1718410955296,15.4341,143.84,143.81,2.5727]
[1718410955512,7.7172,143.84,143.81,7.7183]
[1718410955892,2.5724,143.84,143.82,2.5726]
[1718410956088,2.572,143.86,143.83,23.1519]
[1718410956307,2.5721,143.85,143.82,5.1451]
[1718410956512,2.5721,143.85,143.83,2.5724]
[1718410956817,7.7163,143.85,143.82,7.7176]
[1718410957124,2.5721,143.85,143.82,15.4355]
[1718410957724,7.7163,143.85,143.82,7.7176]
[1718410957897,2.5721,143.85,143.83,2.5724]
[1718410958097,2.5721,143.85,143.82,15.4355]
[1718410958397,7.7163,143.85,143.82,7.7176]
[1718410958592,7.7144,143.89,143.86,2.5718]
[1718410958892,17.9995,143.9,143.88,2.5715]
[1718410958893,2.5713,143.9,143.88,2.5715]
[1718410959090,25.7113,143.91,143.88,2.5715]
[1718410959294,2.5713,143.9,143.88,2.5715]
[1718410960312,7.7137,143.9,143.87,25.7171]
[1718410960818,7.7137,143.9,143.87,7.7149]
[1718410961003,15.4273,143.9,143.87,7.7149]
[1718410961199,2.5714,143.89,143.87,2.5716]
[1718410961404,7.7137,143.9,143.88,2.5715]
[1718410961800,7.7142,143.89,143.86,25.7183]
[1718410962119,2.5714,143.89,143.87,2.5716]
[1718410963512,6.3728,143.94,143.9,374.2875]
[1718410963690,15.4262,143.91,143.9,374.2875]
[1718410963896,25.7104,143.91,143.9,374.2875]
[1718410965720,25.8804,143.91,143.9,374.2875]
[1718410965922,26.3904,143.91,143.9,374.2875]
[1718410966219,26.2204,143.91,143.9,374.2875]
[1718410966399,26.3904,143.91,143.9,374.2875]
[1718410971496,71.3904,143.91,143.9,374.2875]
[1718410972139,26.3904,143.91,143.9,374.2875]
[1718410977613,71.3904,143.91,143.9,374.2875]
[1718410978026,26.3904,143.91,143.9,374.2875]
[1718410979133,38.5704,143.91,143.9,374.2875]
[1718410980315,25.7104,143.91,143.9,374.2875]
[1718410980840,125.7104,143.91,143.9,374.2875]
[1718410981715,126.3904,143.91,143.9,374.2875]
[1718410982027,138.5704,143.91,143.9,374.2875]
[1718410982616,183.5704,143.91,143.9,374.2875]
[1718410983329,171.3904,143.91,143.9,374.2875]
[1718410983526,183.5704,143.91,143.9,374.2875]
[1718410988414,183.90373333,143.91,143.9,374.2875]
[1718410988620,171.72373333,143.91,143.9,374.2875]
[1718410988819,183.90373333,143.91,143.9,374.2875]
[1718410991121,45.45791194,143.91,143.9,374.2875]
[1718410991429,8.04643333,143.91,143.9,374.2875]
[1718410991613,15.75953333,143.91,143.9,374.2875]
[1718410991818,26.04373333,143.91,143.9,374.2875]
[1718410992650,26.72373333,143.91,143.9,374.2875]
[1718410994045,26.21373333,143.91,143.9,374.2875]
[1718410995037,26.38373333,143.91,143.9,374.2875]
[1718410997168,0.33333333,143.91,143.9,374.2875]
[1718410997451,0.33333333,143.91,143.9,399.9996]
[1718410998320,7.7107,143.96,143.93,17.9941]
[1718410998519,7.7107,143.96,143.93,2.5705]
[1718410998520,2.5703,143.95,143.93,2.5705]
[1718410999633,2.5702,143.96,143.93,12.8532]
[1718410999822,2.5702,143.96,143.94,2.5704]
[1718411000446,25.7005,143.97,143.94,7.7114]
[1718411000643,23.1304,143.97,143.94,7.7114]
[1718411000854,2.5701,143.96,143.94,7.7114]
[1718411001336,2.5701,143.96,143.94,2.5704]
[1718411002621,7.7125,143.92,143.91,15.9166]
[1718411002821,2.5708,143.92,143.91,15.9166]
[1718411003036,25.7085,143.92,143.91,15.9166]
[1718411003245,2.5708,143.92,143.91,15.9166]
[1718411003524,25.8785,143.92,143.91,15.9166]
[1718411003927,25.7104,143.91,143.9,374.2875]
[1718411005233,26.2204,143.91,143.9,374.2875]
[1718411005435,26.3904,143.91,143.9,374.2875]
[1718411008761,126.3904,143.91,143.9,374.2875]
[1718411008966,171.3904,143.91,143.9,343.28868001]
[1718411009555,126.3904,143.91,143.9,343.28868001]
[1718411013245,171.3904,143.91,143.9,310.73988001]
[1718411013655,178.62924767,143.91,143.9,308.73988001]
[1718411015455,185.13814767,143.91,143.9,260.39688001]
[1718411015660,211.64034767,143.91,143.9,101.77688001]
[1718411015858,215.91899098,143.91,143.9,101.77688001]
[1718411016081,215.91899098,143.91,143.9,99.69026803]
[1718411016247,215.91899098,143.91,143.9,97.60365605]
[1718411016647,215.91899098,143.91,143.9,95.51704407]
[1718411016870,215.91899098,143.91,143.9,93.51704407]
[1718411017045,215.91899098,143.91,143.9,91.43043209]
[1718411017252,215.91899098,143.91,143.9,89.34382011]
[1718411017570,215.91899098,143.91,143.9,85.17059615]
[1718411017774,215.91899098,143.91,143.9,83.08398417]
[1718411017948,215.91899098,143.91,143.9,80.99737219]
[1718411018143,215.91899098,143.91,143.9,78.91017987]
[1718411018662,215.91899098,143.91,143.9,76.82298755]
[1718411018967,215.91899098,143.91,143.9,74.73579523]
[1718411019181,215.91899098,143.91,143.9,72.64860291]
[1718411019353,215.91899098,143.91,143.9,70.56141059]
[1718411019747,215.91899098,143.91,143.9,68.56141059]
[1718411019969,215.91899098,143.91,143.9,66.56141059]
[1718411020181,205.50899098,143.91,143.9,66.56141059]
[1718411020354,182.90789098,143.91,143.9,66.56141059]
[1718411021379,32.94924767,143.91,143.9,66.56141059]
[1718411021677,25.7104,143.91,143.9,66.56141059]
[1718411022151,125.7104,143.91,143.9,66.56141059]
[1718411023482,126.3904,143.91,143.9,66.56141059]
[1718411023870,25.7104,143.91,143.9,66.56141059]
[1718411024255,125.7104,143.91,143.9,66.56141059]
[1718411024871,25.7104,143.91,143.9,66.56141059]
[1718411025057,7.7131,143.91,143.9,66.56141059]
[1718411025779,15.4262,143.91,143.9,66.56141059]
[1718411026083,25.7104,143.91,143.9,66.56141059]
[1718411026277,26.3904,143.91,143.9,66.56141059]
[1718411026651,17.9973,143.91,143.9,66.56141059]
[1718411026859,15.4262,143.91,143.9,66.56141059]
[1718411027162,25.7104,143.91,143.9,66.56141059]
[1718411027964,26.0504,143.91,143.9,66.56141059]
[1718411028170,26.3904,143.91,143.9,66.56141059]
[1718411032266,71.3904,143.91,143.9,66.56141059]
[1718411033083,26.3904,143.91,143.9,66.56141059]
[1718411036882,26.3904,143.91,143.9,66.06141059]
[1718411039380,126.3904,143.91,143.9,36.06141059]
[1718411039601,171.3904,143.91,143.9,28.96141059]
[1718411039763,171.3904,143.91,143.9,26.96141059]
[1718411040099,171.3904,143.91,143.9,22.96141059]
[1718411040265,171.3904,143.91,143.9,20.96141059]
[1718411040471,171.3904,143.91,143.9,16.87465356]
[1718411040681,171.3904,143.91,143.9,14.78789653]
[1718411040886,171.3904,143.91,143.9,12.7011395]
[1718411041095,171.3904,143.91,143.9,8.52762544]
[1718411041387,171.3904,143.91,143.9,4.44086841]
[1718411041595,171.3904,143.91,143.9,2.35411138]
[1718411041795,171.3904,143.91,143.9,0.35411138]
[1718411044778,71.3904,143.91,143.9,0.35411138]
[1718411045185,25.7104,143.91,143.9,0.35411138]
[1718411046614,26.2204,143.91,143.9,0.35411138]
[1718411046791,26.3904,143.91,143.9,0.35411138]
[1718411047589,2.572,143.86,143.83,25.7237]
[1718411047785,7.7145,143.89,143.86,7.7156]
[1718411047988,23.142,143.9,143.86,31.0807]
[1718411048181,23.142,143.9,143.88,2.5715]
[1718411048182,2.5712,143.9,143.88,2.5715]
[1718411048376,23.1396,143.91,143.87,25.7168]
[1718411048582,23.1396,143.91,143.87,7.7148]
[1718411048583,7.7137,143.9,143.87,7.7148]
[1718411049186,23.1409,143.9,143.87,2.5716]
[1718411049498,100.0,143.93,143.86,15.6493]
[1718411049698,2.5717,143.87,143.86,15.6493]
[1718411049906,7.7152,143.87,143.86,15.6493]
[1718411050486,25.7174,143.87,143.86,15.6493]
[1718411051119,25.8874,143.87,143.86,15.6493]
[1718411052893,7.8852,143.87,143.86,15.6493]
[1718411053206,15.6004,143.87,143.86,15.6493]
[1718411053808,7.7152,143.87,143.86,15.6493]
[1718411054014,25.7174,143.87,143.86,15.6493]
[1718411054186,18.1722,143.87,143.86,15.6493]
[1718411054387,25.7174,143.87,143.86,15.6493]
[1718411054909,2.5723,143.84,143.82,25.1455]
[1718411055207,7.7164,143.85,143.82,30.2908]
[1718411055712,2.572,143.86,143.84,2.5722]
[1718411056119,2.572,143.86,143.83,25.7244]
[1718411056488,2.572,143.86,143.83,15.4346]
[1718411056890,2.572,143.86,143.83,25.7244]
[1718411057313,5.1433,143.88,143.85,2.5721]
[1718411057526,2.572,143.86,143.83,25.7237]
[1718411057823,7.7159,143.86,143.83,2.5723]
[1718411058027,23.3161,143.87,143.84,2.5722]
[1718411058228,2.5719,143.86,143.84,2.5722]
[1718411059608,7.7158,143.86,143.83,7.7172]
[1718411059812,2.5721,143.85,143.83,2.5724]
[1718411060393,7.7159,143.86,143.83,7.7173]
[1718411060814,2.572,143.86,143.84,2.5722]
[1718411061295,8.0556,143.87,143.84,7.7168]
[1718411061604,0.34,143.86,143.84,7.7168]
[1718411061998,0.17,143.86,143.85,2.5721]
[1718411062204,2.9117,143.87,143.85,2.5721]
[1718411063226,0.17,143.87,143.85,2.5721]
[1718411063412,5.1427,143.9,143.86,7.7157]
[1718411063614,7.714,143.9,143.87,7.7151]
[1718411063814,3.64729687,143.95,143.82,26.8869]
[1718411064005,2.5709,143.92,143.9,2.5712]
[1718411064204,25.7072,143.93,143.9,2.5712]
[1718411064405,2.5709,143.92,143.9,2.5712]
[1718411064601,2.5709,143.92,143.89,25.7135]
[1718411064921,7.7126,143.92,143.89,7.7138]
[1718411065117,7.7126,143.92,143.89,2.5712]
[1718411065818,2.5713,143.9,143.83,36.5561]
[1718411066020,7.7138,143.9,143.87,2.5716]
[1718411066504,2.5713,143.9,143.88,19.1276]
[1718411066707,7.7134,143.91,143.88,24.2707]
[1718411067225,7.7134,143.91,143.88,19.1276]
[1718411067520,2.5712,143.9,143.88,19.1276]
[1718411067726,2.5712,143.9,143.88,16.5561]
[1718411067948,2.5712,143.9,143.88,19.1276]
[1718411068098,25.7107,143.91,143.88,19.1276]
[1718411068298,17.9976,143.91,143.88,19.1276]
[1718411068600,2.5711,143.91,143.88,24.2707]
[1718411069705,15.4264,143.91,143.88,19.1276]
[1718411069906,7.7133,143.91,143.88,24.2707]
[1718411070828,7.7133,143.91,143.86,2.5719]
[1718411070829,2.5716,143.88,143.86,2.5719]
[1718411071500,15.4287,143.89,143.86,2.5719]
[1718411071700,7.7145,143.89,143.86,2.5719]
[1718411072307,2.5715,143.89,143.86,15.4315]
[1718411072508,2.5715,143.89,143.86,7.7157]
[1718411073299,5.1431,143.88,143.84,31.9895]
[1718411073498,5.1435,143.87,143.84,19.1283]
[1718411073717,13.1988,143.87,143.84,19.1283]
[1718411074304,8.0553,143.87,143.84,19.1283]
[1718411074509,2.5719,143.86,143.84,19.1283]
[1718411075221,7.717,143.84,143.81,7.7183]
[1718411075416,2.7422,143.85,143.82,5.1452]
[1718411075600,18.0041,143.86,143.82,5.1452]
[1718411075800,26.0616,143.85,143.82,2.5725]
[1718411076024,5.3141,143.86,143.82,7.7179]
[1718411076199,7.7161,143.86,143.83,2.5724]
[1718411076406,2.5721,143.85,143.82,7.7176]
[1718411076627,2.7423,143.84,143.81,25.7272]
[1718411076948,0.17,143.84,143.81,7.7181]
[1718411077101,2.7423,143.84,143.82,2.5726]
[1718411077429,2.5723,143.84,143.82,2.5726]
[1718411077630,7.7169,143.84,143.81,7.7181]
[1718411077840,7.8863,143.85,143.82,7.7178]
[1718411078060,7.8863,143.85,143.82,7.7179]
[1718411078556,7.8863,143.85,143.82,7.7178]
[1718411078926,2.7418,143.87,143.78,37.5001]
[1718411079129,2.5717,143.87,143.85,2.5721]
[1718411079348,25.8865,143.88,143.85,2.5721]
[1718411079545,2.5717,143.87,143.84,24.3466]
[1718411079857,7.7152,143.87,143.84,24.3466]
[1718411080544,2.5719,143.86,143.84,19.2022]
[1718411081347,5.1439,143.86,143.84,16.6301]
[1718411081530,2.5719,143.86,143.84,16.6301]
[1718411081751,2.5718,143.87,143.85,2.572]
[1718411082039,2.5717,143.87,143.85,2.572]
[1718411082242,7.715,143.88,143.85,7.7162]
[1718411083732,2.5709,143.92,143.89,7.7138]
[1718411083938,2.5709,143.92,143.89,2.5712]
[1718411083939,12.8544,143.92,143.89,2.5712]
[1718411084137,15.4254,143.92,143.89,2.5712]
[1718411084450,2.5713,143.9,143.87,7.715]
[1718411084642,7.7133,143.91,143.88,7.7146]
[1718411084946,2.5712,143.9,143.88,2.5715]
[1718411085253,2.5711,143.91,143.89,2.5713]
[1718411085439,2.5711,143.91,143.88,25.7155]
[1718411085648,7.7132,143.91,143.88,7.7145]
[1718411085943,7.7129,143.92,143.89,7.714]
[1718411086134,5.1408,143.95,143.91,26.9141]
[1718411086340,2.5705,143.94,143.91,39.7688]
[1718411086538,7.7115,143.94,143.91,24.3427]
[1718411086753,2.5708,143.92,143.91,16.6301]
[1718411086950,25.7085,143.92,143.91,16.6301]
[1718411087143,25.7085,143.92,143.89,8.9372]
[1718411087445,2.571,143.91,143.89,8.9372]
[1718411087749,2.5707,143.93,143.91,2.5709]
[1718411087951,2.571,143.92,143.9,2.5712]
[1718411088451,2.571,143.92,143.89,15.4279]
[1718411088829,2.571,143.92,143.9,2.5712]
[1718411089935,2.571,143.91,143.89,2.5712]
[1718411090140,7.7128,143.92,143.89,7.714]
[1718411090861,7.7128,143.92,143.89,15.4281]
[1718411091030,2.5709,143.92,143.9,2.5712]
[1718411091755,2.5709,143.92,143.9,2.5711]
[1718411092559,7.7123,143.93,143.9,15.4271]
[1718411093578,26.2158,143.94,143.91,7.713]
[1718411093751,2.9106,143.93,143.91,2.571]
[1718411094145,0.34,143.93,143.91,7.713]
[1718411094568,2.9107,143.93,143.91,7.713]
[1718411094771,2.9107,143.93,143.91,2.571]
[1718411095146,0.34,143.93,143.91,7.713]
[1718411095561,2.9107,143.93,143.91,7.713]
[1718411095767,2.9107,143.93,143.91,2.571]
[1718411096164,7.8812,143.95,143.92,7.7124]
[1718411096345,0.17,143.94,143.92,7.7123]
[1718411096559,15.4214,143.96,143.93,5.1413]
[1718411096766,2.5702,143.96,143.93,5.1413]
[1718411096950,2.5702,143.96,143.93,15.4238]
[1718411096951,7.7105,143.96,143.93,15.4238]
[1718411097449,7.7105,143.96,143.93,7.7118]
[1718411097876,2.5703,143.95,143.93,7.7118]
[1718411098047,2.5703,143.95,143.93,2.5705]
[1718411098248,7.7104,143.96,143.93,25.7061]
[1718411098448,15.4208,143.96,143.93,7.7116]
[1718411098681,2.5703,143.95,143.93,7.7116]
[1718411098853,2.5703,143.95,143.93,2.5705]
[1718411099157,7.7116,143.94,143.91,17.9966]
[1718411099358,7.7116,143.94,143.91,2.5709]
[1718411099359,7.7115,143.94,143.91,2.5709]
[1718411099549,7.7115,143.94,143.91,15.426]
[1718411099750,15.423,143.94,143.91,7.7129]
[1718411100155,2.5705,143.94,143.92,2.5708]
[1718411100582,2.9107,143.93,143.9,7.7132]
[1718411100775,2.9107,143.93,143.91,2.571]
[1718411101283,0.34,143.93,143.91,7.713]
[1718411101474,7.7132,143.91,143.88,7.7143]
[1718411101673,7.7132,143.91,143.88,15.429]
[1718411101881,2.5711,143.91,143.88,25.7152]
[1718411102065,2.5711,143.91,143.88,23.1438]
[1718411102381,2.5711,143.91,143.89,2.5714]
[1718411102771,26.0497,143.92,143.89,2.5714]
[1718411102967,0.34,143.91,143.89,2.5714]
[1718411103291,0.34,143.91,143.9,2.5712]
[1718411103958,0.34,143.91,143.89,25.7134]
[1718411104784,2.5712,143.9,143.87,7.7149]
[1718411104966,0.34,143.89,143.88,2.5715]
[1718411105167,0.34,143.89,143.87,23.1453]
[1718411105373,0.34,143.89,143.88,7.7146]
[1718411106485,0.34,143.89,143.88,2.5715]
[1718411107990,2.5711,143.91,143.85,15.3343]
[1718411108381,2.5711,143.91,143.88,7.7144]
[1718411108586,2.5711,143.91,143.89,2.5713]
[1718411108898,7.7132,143.91,143.88,7.7144]
[1718411109070,2.5712,143.9,143.88,2.5714]
[1718411109273,2.5712,143.9,143.88,2.5715]
[1718411109769,5.1425,143.9,143.87,2.5716]
[1718411110089,15.4265,143.91,143.88,2.5714]
[1718411110272,7.7133,143.91,143.88,7.7145]
[1718411110467,0.51,143.92,143.85,15.3343]
[1718411110781,0.34,143.92,143.9,2.5711]
[1718411110973,2.5705,143.94,143.92,2.5707]
[1718411111597,23.1348,143.94,143.9,23.1402]
[1718411111895,12.8534,143.93,143.9,2.5711]
[1718411112103,2.5708,143.92,143.9,2.5711]
[1718411112469,15.4242,143.93,143.9,2.5711]
[1718411112790,2.5708,143.93,143.91,2.571]
[1718411112972,15.4242,143.93,143.9,7.7134]
[1718411113174,2.5708,143.92,143.9,7.7134]
[1718411113387,2.5709,143.92,143.9,2.571]
[1718411113592,7.712,143.93,143.9,2.571]
[1718411113779,0.34,143.94,143.92,2.5708]
[1718411113980,2.9105,143.94,143.92,2.5708]
[1718411114211,2.9105,143.94,143.91,25.7098]
[1718411114700,12.8534,143.93,143.9,2.5711]
[1718411114906,2.5709,143.92,143.89,25.7132]
[1718411115197,5.4811,143.94,143.9,7.7134]
[1718411115388,8.0516,143.94,143.91,12.8549]
[1718411115589,8.0516,143.94,143.92,2.5708]
[1718411115782,8.0516,143.94,143.91,7.7128]
[1718411115980,2.5707,143.93,143.91,2.5709]
[1718411116185,7.7121,143.93,143.9,25.711]
[1718411116373,5.1419,143.92,143.89,2.5713]
[1718411116578,3.0806,143.94,143.92,2.5708]
[1718411116799,3.0806,143.94,143.85,15.3343]
[1718411116800,3.0808,143.93,143.85,15.3343]
[1718411116976,2.571,143.91,143.89,2.5713]
[1718411117589,7.7121,143.93,143.9,17.9978]
[1718411117817,2.5707,143.93,143.91,2.571]
[1718411117982,5.1415,143.93,143.9,2.571]
[1718411118176,7.7123,143.93,143.9,2.571]